[Event "*** Titled Tuesday Blitz"]
[Site "Chess.com"]
[Date "2020.04.28"]
[Round "8"]
[White "Durarbayli"]
[Black "johnathan113"]
[Result "1-0"]
[WhiteElo "2804"]
[BlackElo "2649"]
[TimeControl "180+1"]
[EndTime "11:35:55 PDT"]
[Termination "Durarbayli won by checkmate"]

1. e4 {[%clk 0:03:00.9]} 1... c5 {[%clk 0:03:00]} 2. b3 {[%clk 0:03:00.8]} 2...
g6 {[%clk 0:02:51.4]} 3. Bb2 {[%clk 0:03:00.2]} 3... Nf6 {[%clk 0:02:52]} 4. Qf3
{[%clk 0:03:00.6]} 4... d6 {[%clk 0:02:44]} 5. Bb5+ {[%clk 0:03:00.4]} 5... Bd7
{[%clk 0:02:39.3]} 6. Bxf6 {[%clk 0:02:59.8]} 6... exf6 {[%clk 0:02:38.9]} 7.
Bxd7+ {[%clk 0:03:00.3]} 7... Nxd7 {[%clk 0:02:28.6]} 8. Nc3 {[%clk 0:03:00.6]}
8... Bg7 {[%clk 0:02:29.3]} 9. Nge2 {[%clk 0:03:00.5]} 9... O-O {[%clk
0:02:29.8]} 10. Qg3 {[%clk 0:03:00.4]} 10... b5 {[%clk 0:02:22]} 11. Qxd6 {[%clk
0:02:57]} 11... b4 {[%clk 0:02:17.7]} 12. Na4 {[%clk 0:02:29.4]} 12... f5 {[%clk
0:02:17.2]} 13. Rd1 {[%clk 0:02:19.9]} 13... fxe4 {[%clk 0:01:47.8]} 14. Nxc5
{[%clk 0:02:02.2]} 14... Nxc5 {[%clk 0:01:43.6]} 15. Qxc5 {[%clk 0:02:03.1]}
15... a5 {[%clk 0:01:29.8]} 16. Qe3 {[%clk 0:01:55.8]} 16... Rc8 {[%clk
0:01:28.3]} 17. c4 {[%clk 0:01:55.1]} 17... f5 {[%clk 0:01:20.4]} 18. d4 {[%clk
0:01:41.5]} 18... exd3 {[%clk 0:01:11.9]} 19. Rxd3 {[%clk 0:01:35.8]} 19... Qf6
{[%clk 0:01:10.9]} 20. O-O {[%clk 0:01:34.6]} 20... Rfe8 {[%clk 0:01:06.7]} 21.
Qd2 {[%clk 0:01:33.3]} 21... a4 {[%clk 0:01:00.9]} 22. Nf4 {[%clk 0:01:29.8]}
22... axb3 {[%clk 0:00:56.1]} 23. axb3 {[%clk 0:01:28.3]} 23... Kh8 {[%clk
0:00:39.6]} 24. Nd5 {[%clk 0:01:27.1]} 24... Qh4 {[%clk 0:00:38.2]} 25. Qxb4
{[%clk 0:01:09.6]} 25... Re4 {[%clk 0:00:31.8]} 26. g3 {[%clk 0:01:02.3]} 26...
Qh3 {[%clk 0:00:29.8]} 27. Re3 {[%clk 0:01:01.5]} 27... Rf8 {[%clk 0:00:09.9]}
28. Rxe4 {[%clk 0:00:53.2]} 28... fxe4 {[%clk 0:00:10.8]} 29. Qe7 {[%clk
0:00:52.6]} 29... Qg4 {[%clk 0:00:06.1]} 30. b4 {[%clk 0:00:31.9]} 30... Qe2
{[%clk 0:00:05.7]} 31. Ne3 {[%clk 0:00:22.2]} 31... Kg8 {[%clk 0:00:05.2]} 32.
Qxe4 {[%clk 0:00:20.4]} 32... Bh6 {[%clk 0:00:05.3]} 33. Qe6+ {[%clk 0:00:18.4]}
33... Kh8 {[%clk 0:00:04.7]} 34. Qe5+ {[%clk 0:00:18.4]} 34... Kg8 {[%clk
0:00:04.8]} 35. Qe6+ {[%clk 0:00:18]} 35... Kh8 {[%clk 0:00:05.2]} 36. c5 {[%clk
0:00:18]} 36... Rxf2 {[%clk 0:00:02.2]} 37. Rxf2 {[%clk 0:00:15.6]} 37... Bxe3
{[%clk 0:00:01.7]} 38. Qf6+ {[%clk 0:00:15.5]} 38... Kg8 {[%clk 0:00:01.8]} 39.
Qf8# {[%clk 0:00:16.4]} 1-0

[Event "*** Titled Tuesday Blitz"]
[Site "Chess.com"]
[Date "2020.04.28"]
[Round "8"]
[White "Casablanca"]
[Black "Yuri202062"]
[Result "0-1"]
[WhiteElo "2406"]
[BlackElo "2555"]
[TimeControl "180+1"]
[EndTime "11:35:55 PDT"]
[Termination "Yuri202062 won by resignation"]

1. d4 {[%clk 0:03:00.9]} 1... d5 {[%clk 0:02:59.5]} 2. c4 {[%clk 0:02:58]} 2...
e6 {[%clk 0:02:59.5]} 3. Nc3 {[%clk 0:02:57.9]} 3... c6 {[%clk 0:02:59.8]} 4.
Nf3 {[%clk 0:02:56.7]} 4... Nf6 {[%clk 0:02:58.4]} 5. Bg5 {[%clk 0:02:55]} 5...
dxc4 {[%clk 0:02:57.6]} 6. e4 {[%clk 0:02:54.8]} 6... b5 {[%clk 0:02:57.7]} 7.
e5 {[%clk 0:02:54.9]} 7... h6 {[%clk 0:02:57.2]} 8. Bh4 {[%clk 0:02:55.5]} 8...
g5 {[%clk 0:02:57.4]} 9. Nxg5 {[%clk 0:02:56.1]} 9... hxg5 {[%clk 0:02:57.5]}
10. Bxg5 {[%clk 0:02:57]} 10... Nbd7 {[%clk 0:02:57.6]} 11. exf6 {[%clk
0:02:57.6]} 11... Bb7 {[%clk 0:02:57.6]} 12. g3 {[%clk 0:02:58.1]} 12... Qb6
{[%clk 0:02:57.6]} 13. Bg2 {[%clk 0:02:58]} 13... O-O-O {[%clk 0:02:57.1]} 14.
O-O {[%clk 0:02:58.1]} 14... c5 {[%clk 0:02:57]} 15. d5 {[%clk 0:02:55.8]} 15...
b4 {[%clk 0:02:57]} 16. Na4 {[%clk 0:02:55.1]} 16... Qb5 {[%clk 0:02:57]} 17. a3
{[%clk 0:02:49]} 17... Nb8 {[%clk 0:02:53.5]} 18. axb4 {[%clk 0:02:47.5]} 18...
cxb4 {[%clk 0:02:52.8]} 19. Qe2 {[%clk 0:02:36]} 19... Bxd5 {[%clk 0:02:49.4]}
20. h4 {[%clk 0:02:36.2]} 20... Bxg2 {[%clk 0:02:42.1]} 21. Kxg2 {[%clk
0:02:37.1]} 21... Rd3 {[%clk 0:02:30.2]} 22. Rfd1 {[%clk 0:02:29.3]} 22... Qd5+
{[%clk 0:02:26]} 23. Kg1 {[%clk 0:02:28.1]} 23... Nc6 {[%clk 0:02:25.4]} 24.
Rxd3 {[%clk 0:02:11]} 24... cxd3 {[%clk 0:02:24]} 25. Qe3 {[%clk 0:02:10.6]}
25... Nd4 {[%clk 0:02:07.3]} 26. Rc1+ {[%clk 0:01:37.9]} 26... Kb7 {[%clk
0:02:02.1]} 27. Bf4 {[%clk 0:01:37.9]} 27... Ne2+ {[%clk 0:01:49.7]} 28. Kh2
{[%clk 0:01:13.2]} 28... Nxc1 {[%clk 0:01:47.4]} 29. Qxc1 {[%clk 0:01:12.9]}
29... Bd6 {[%clk 0:01:44.2]} 30. Bxd6 {[%clk 0:01:05.3]} 30... Qxd6 {[%clk
0:01:41.6]} 31. Nc5+ {[%clk 0:01:06.2]} 31... Kb8 {[%clk 0:00:57.3]} 32. Qc4
{[%clk 0:01:02.4]} 32... Rxh4+ {[%clk 0:00:35.3]} 33. Qxh4 {[%clk 0:00:59.9]}
33... Qxc5 {[%clk 0:00:35.5]} 34. Qf4+ {[%clk 0:00:15.4]} 34... Kb7 {[%clk
0:00:34.6]} 35. Qf3+ {[%clk 0:00:15.5]} 35... Qd5 {[%clk 0:00:34.7]} 36. Qf4
{[%clk 0:00:13.5]} 36... a5 {[%clk 0:00:30.7]} 37. Qd2 {[%clk 0:00:11.5]} 37...
Ka6 {[%clk 0:00:29.2]} 38. Kg1 {[%clk 0:00:09.1]} 38... Kb5 {[%clk 0:00:29]} 39.
Kf1 {[%clk 0:00:05.3]} 39... a4 {[%clk 0:00:29]} 40. Ke1 {[%clk 0:00:05.3]}
40... a3 {[%clk 0:00:29.1]} 41. bxa3 {[%clk 0:00:05.4]} 41... bxa3 {[%clk
0:00:29.3]} 42. f4 {[%clk 0:00:05.1]} 42... Qc4 {[%clk 0:00:25.5]} 43. Kd1
{[%clk 0:00:03]} 43... Qb3+ {[%clk 0:00:21.9]} 44. Kc1 {[%clk 0:00:02.5]} 44...
a2 {[%clk 0:00:21.9]} 45. Qb2 {[%clk 0:00:01]} 45... Qxb2+ {[%clk 0:00:21]} 46.
Kxb2 {[%clk 0:00:01.9]} 46... d2 {[%clk 0:00:21.1]} 47. Kxa2 {[%clk 0:00:02.7]}
0-1

[Event "*** Titled Tuesday Blitz"]
[Site "Chess.com"]
[Date "2020.04.28"]
[Round "8"]
[White "awesomevishesh"]
[Black "Cocaino74"]
[Result "1-0"]
[WhiteElo "2502"]
[BlackElo "2332"]
[TimeControl "180+1"]
[EndTime "11:35:55 PDT"]
[Termination "awesomevishesh won by resignation"]

1. d4 {[%clk 0:03:00.9]} 1... d5 {[%clk 0:02:57.9]} 2. c4 {[%clk 0:03:00.4]}
2... e6 {[%clk 0:02:58.4]} 3. Nf3 {[%clk 0:03:00.1]} 3... c6 {[%clk 0:02:58.3]}
4. g3 {[%clk 0:02:59.7]} 4... dxc4 {[%clk 0:02:57.6]} 5. Bg2 {[%clk 0:02:59.5]}
5... b5 {[%clk 0:02:56.4]} 6. O-O {[%clk 0:02:59.7]} 6... Bb7 {[%clk 0:02:54]}
7. a4 {[%clk 0:02:57.7]} 7... a6 {[%clk 0:02:53]} 8. b3 {[%clk 0:02:55]} 8...
cxb3 {[%clk 0:02:49.2]} 9. Qxb3 {[%clk 0:02:54.9]} 9... Nd7 {[%clk 0:02:44.2]}
10. Bb2 {[%clk 0:02:49.4]} 10... Ngf6 {[%clk 0:02:26.1]} 11. Nbd2 {[%clk
0:02:46.6]} 11... Be7 {[%clk 0:02:17.8]} 12. Rfd1 {[%clk 0:02:24.6]} 12... O-O
{[%clk 0:02:14.8]} 13. Ne5 {[%clk 0:02:24.1]} 13... Qb6 {[%clk 0:01:54.1]} 14.
Ndf3 {[%clk 0:01:51.5]} 14... bxa4 {[%clk 0:01:28.9]} 15. Qc2 {[%clk 0:01:46.3]}
15... c5 {[%clk 0:01:24.9]} 16. Nxd7 {[%clk 0:01:36.9]} 16... Nxd7 {[%clk
0:01:25.1]} 17. Rxa4 {[%clk 0:01:32.7]} 17... Bd5 {[%clk 0:01:12.3]} 18. Nd2
{[%clk 0:01:19.9]} 18... Bxg2 {[%clk 0:00:45.7]} 19. Kxg2 {[%clk 0:01:20.8]}
19... Rfc8 {[%clk 0:00:42.8]} 20. Rc4 {[%clk 0:01:11.6]} 20... Qb7+ {[%clk
0:00:38.1]} 21. Nf3 {[%clk 0:01:10]} 21... Nb6 {[%clk 0:00:31.5]} 22. Rc3 {[%clk
0:01:02.1]} 22... cxd4 {[%clk 0:00:31.7]} 23. Rxc8+ {[%clk 0:00:33.4]} 23...
Rxc8 {[%clk 0:00:32.6]} 24. Qd3 {[%clk 0:00:29.7]} 24... e5 {[%clk 0:00:20.2]}
25. e4 {[%clk 0:00:20.1]} 25... Na4 {[%clk 0:00:09.7]} 26. Ba1 {[%clk
0:00:14.4]} 26... Nc5 {[%clk 0:00:10.2]} 27. Qb1 {[%clk 0:00:11]} 27... Qxe4
{[%clk 0:00:10.3]} 28. Qxe4 {[%clk 0:00:10]} 28... Nxe4 {[%clk 0:00:11]} 29.
Nxe5 {[%clk 0:00:10.9]} 29... Bf6 {[%clk 0:00:09.6]} 30. Bxd4 {[%clk 0:00:07]}
30... Rd8 {[%clk 0:00:08.9]} 31. Nc6 {[%clk 0:00:06.4]} 31... Rd6 {[%clk
0:00:09.1]} 32. Re1 {[%clk 0:00:04.5]} 32... Bxd4 {[%clk 0:00:04.5]} 33. Rxe4
{[%clk 0:00:04.7]} 33... f5 {[%clk 0:00:03.2]} 34. Ne7+ {[%clk 0:00:03.6]} 34...
Kf7 {[%clk 0:00:03.2]} 35. Nxf5 {[%clk 0:00:04]} 35... Re6 {[%clk 0:00:02.3]}
36. Rxe6 {[%clk 0:00:03.9]} 36... g6 {[%clk 0:00:03]} 37. Nxd4 {[%clk
0:00:04.8]} 1-0

[Event "*** Titled Tuesday Blitz"]
[Site "Chess.com"]
[Date "2020.04.28"]
[Round "8"]
[White "Khayala13"]
[Black "ehrenfeld"]
[Result "1-0"]
[WhiteElo "2343"]
[BlackElo "2474"]
[TimeControl "180+1"]
[EndTime "11:35:55 PDT"]
[Termination "Khayala13 won by resignation"]

1. e4 {[%clk 0:03:00.9]} 1... e5 {[%clk 0:02:59.5]} 2. Nf3 {[%clk 0:02:58]} 2...
Nc6 {[%clk 0:02:58.6]} 3. c3 {[%clk 0:02:58.1]} 3... Nf6 {[%clk 0:02:57.2]} 4.
d4 {[%clk 0:02:58.5]} 4... exd4 {[%clk 0:02:50.9]} 5. e5 {[%clk 0:02:59.4]} 5...
Nd5 {[%clk 0:02:50.1]} 6. cxd4 {[%clk 0:02:59]} 6... Bb4+ {[%clk 0:02:49.6]} 7.
Bd2 {[%clk 0:02:58.3]} 7... d6 {[%clk 0:02:48.8]} 8. Bb5 {[%clk 0:02:57.3]} 8...
Bxd2+ {[%clk 0:02:39.4]} 9. Qxd2 {[%clk 0:02:58.2]} 9... O-O {[%clk 0:02:39]}
10. O-O {[%clk 0:02:55.5]} 10... Bg4 {[%clk 0:02:36.5]} 11. Ng5 {[%clk
0:02:36.3]} 11... f6 {[%clk 0:01:58.3]} 12. exf6 {[%clk 0:02:10.6]} 12... Nxf6
{[%clk 0:01:33.3]} 13. Nc3 {[%clk 0:02:04.8]} 13... d5 {[%clk 0:01:30.5]} 14.
Rfe1 {[%clk 0:02:01.3]} 14... Qd6 {[%clk 0:01:27.5]} 15. h3 {[%clk 0:01:59.9]}
15... Bf5 {[%clk 0:01:26.6]} 16. Nf3 {[%clk 0:01:58.4]} 16... Ne4 {[%clk
0:01:24.6]} 17. Nxe4 {[%clk 0:01:51.9]} 17... Bxe4 {[%clk 0:01:24.6]} 18. Ne5
{[%clk 0:01:44.8]} 18... Nxe5 {[%clk 0:01:22.9]} 19. dxe5 {[%clk 0:01:45.7]}
19... Qb6 {[%clk 0:01:16.9]} 20. Ba4 {[%clk 0:01:37]} 20... Rad8 {[%clk
0:01:13.9]} 21. Bb3 {[%clk 0:01:35.8]} 21... Kh8 {[%clk 0:01:13.1]} 22. Rad1
{[%clk 0:01:35.9]} 22... Bf5 {[%clk 0:01:01.6]} 23. Qg5 {[%clk 0:01:31.1]} 23...
Be6 {[%clk 0:00:55.7]} 24. Re3 {[%clk 0:01:25.5]} 24... c5 {[%clk 0:00:51]} 25.
Rg3 {[%clk 0:01:21]} 25... Qc7 {[%clk 0:00:50.4]} 26. Bc2 {[%clk 0:01:14.6]}
26... Qf7 {[%clk 0:00:44.8]} 27. Rf3 {[%clk 0:01:09.9]} 27... Qg8 {[%clk
0:00:38.7]} 28. Rg3 {[%clk 0:00:58.1]} 28... Qf7 {[%clk 0:00:38.5]} 29. Rf3
{[%clk 0:00:56.2]} 29... Qe8 {[%clk 0:00:31.5]} 30. Qh4 {[%clk 0:00:51.6]} 30...
h6 {[%clk 0:00:29]} 31. Rg3 {[%clk 0:00:47.2]} 31... Qf7 {[%clk 0:00:27.7]} 32.
Rf3 {[%clk 0:00:41.5]} 32... Qc7 {[%clk 0:00:27.1]} 33. Rxf8+ {[%clk 0:00:38.5]}
33... Rxf8 {[%clk 0:00:26.5]} 34. Qh5 {[%clk 0:00:39.4]} 34... Qf7 {[%clk
0:00:25.6]} 35. Qe2 {[%clk 0:00:37.6]} 35... Qf4 {[%clk 0:00:24.8]} 36. f3
{[%clk 0:00:36.1]} 36... h5 {[%clk 0:00:23.9]} 37. Qd3 {[%clk 0:00:36]} 37...
Bf5 {[%clk 0:00:22.7]} 38. Qc3 {[%clk 0:00:25.1]} 38... Bxc2 {[%clk 0:00:19.6]}
39. Qxc2 {[%clk 0:00:26]} 39... Qxe5 {[%clk 0:00:19.1]} 40. Qxc5 {[%clk
0:00:26.3]} 40... Rd8 {[%clk 0:00:16.8]} 41. Kh1 {[%clk 0:00:22]} 41... h4
{[%clk 0:00:16.2]} 42. Qxa7 {[%clk 0:00:21.4]} 42... d4 {[%clk 0:00:16.3]} 43.
Qxb7 {[%clk 0:00:20.6]} 43... d3 {[%clk 0:00:16.4]} 44. Qe4 {[%clk 0:00:19.9]}
44... Qxe4 {[%clk 0:00:16]} 45. fxe4 {[%clk 0:00:20.8]} 45... Kh7 {[%clk
0:00:13.3]} 46. Kg1 {[%clk 0:00:21.2]} 46... Kg6 {[%clk 0:00:13.8]} 47. Kf2
{[%clk 0:00:21.5]} 47... Kg5 {[%clk 0:00:14.5]} 48. Ke3 {[%clk 0:00:21.9]} 48...
Kf6 {[%clk 0:00:12.3]} 49. Rxd3 {[%clk 0:00:22.1]} 1-0

[Event "*** Titled Tuesday Blitz"]
[Site "Chess.com"]
[Date "2020.04.28"]
[Round "8"]
[White "XiaoKangZhong"]
[Black "politeplayer"]
[Result "1-0"]
[WhiteElo "2364"]
[BlackElo "2201"]
[TimeControl "180+1"]
[EndTime "11:35:55 PDT"]
[Termination "XiaoKangZhong won by resignation"]

1. e4 {[%clk 0:03:00.5]} 1... c5 {[%clk 0:02:59]} 2. c3 {[%clk 0:03:00.6]} 2...
Nf6 {[%clk 0:02:57.1]} 3. d4 {[%clk 0:03:01.1]} 3... cxd4 {[%clk 0:02:48.8]} 4.
e5 {[%clk 0:03:01]} 4... Nd5 {[%clk 0:02:48.1]} 5. Nf3 {[%clk 0:03:00]} 5... e6
{[%clk 0:02:45.6]} 6. cxd4 {[%clk 0:02:59.8]} 6... d6 {[%clk 0:02:44.2]} 7. Bc4
{[%clk 0:02:59.2]} 7... Nc6 {[%clk 0:02:43.9]} 8. O-O {[%clk 0:02:58.8]} 8...
Be7 {[%clk 0:02:42.2]} 9. Qe2 {[%clk 0:02:57.5]} 9... O-O {[%clk 0:02:40.8]} 10.
Nc3 {[%clk 0:02:57.7]} 10... dxe5 {[%clk 0:02:36.6]} 11. dxe5 {[%clk 0:02:55]}
11... Nxc3 {[%clk 0:02:32.6]} 12. bxc3 {[%clk 0:02:55.9]} 12... Qa5 {[%clk
0:02:32.6]} 13. Bd2 {[%clk 0:02:55]} 13... Rd8 {[%clk 0:02:32]} 14. Rfd1 {[%clk
0:02:45.8]} 14... Bd7 {[%clk 0:02:31.5]} 15. Bd3 {[%clk 0:02:44.2]} 15... Be8
{[%clk 0:02:26.9]} 16. Qe4 {[%clk 0:02:43.6]} 16... g6 {[%clk 0:02:27.3]} 17. h4
{[%clk 0:02:27.3]} 17... Qd5 {[%clk 0:02:25.7]} 18. Qxd5 {[%clk 0:02:25]} 18...
Rxd5 {[%clk 0:02:24.9]} 19. Be4 {[%clk 0:02:24.9]} 19... Rc5 {[%clk 0:02:15.1]}
20. Rab1 {[%clk 0:02:22.9]} 20... b6 {[%clk 0:02:08.6]} 21. Be3 {[%clk
0:02:16.5]} 21... Rxc3 {[%clk 0:02:07.3]} 22. Rdc1 {[%clk 0:02:16.7]} 22...
Rxc1+ {[%clk 0:02:04.3]} 23. Rxc1 {[%clk 0:02:17.6]} 23... Rc8 {[%clk
0:01:30.9]} 24. Nd4 {[%clk 0:02:11.4]} 24... Bc5 {[%clk 0:01:08.6]} 25. Nb5
{[%clk 0:01:31.2]} 25... Bxe3 {[%clk 0:01:01.5]} 26. fxe3 {[%clk 0:01:32.1]}
26... Ne7 {[%clk 0:01:00.2]} 27. Rxc8 {[%clk 0:01:03.6]} 27... Nxc8 {[%clk
0:00:59.6]} 28. a4 {[%clk 0:00:58.6]} 28... Bxb5 {[%clk 0:00:53.8]} 29. axb5
{[%clk 0:00:59.5]} 29... Ne7 {[%clk 0:00:54.1]} 30. Kf2 {[%clk 0:00:58]} 30...
Nd5 {[%clk 0:00:54.3]} 31. Bxd5 {[%clk 0:00:29.3]} 31... exd5 {[%clk 0:00:53.5]}
32. Ke2 {[%clk 0:00:30.2]} 32... Kf8 {[%clk 0:00:54]} 33. Kd3 {[%clk 0:00:30.4]}
33... Ke7 {[%clk 0:00:54.5]} 34. Kd4 {[%clk 0:00:31.3]} 34... Ke6 {[%clk
0:00:54.9]} 35. g4 {[%clk 0:00:27.5]} 35... h6 {[%clk 0:00:54]} 36. e4 {[%clk
0:00:23.5]} 36... dxe4 {[%clk 0:00:52.8]} 37. Kxe4 {[%clk 0:00:24.4]} 37... f6
{[%clk 0:00:48.9]} 38. exf6 {[%clk 0:00:22.5]} 38... Kxf6 {[%clk 0:00:49.1]} 39.
Kd5 {[%clk 0:00:23.1]} 39... h5 {[%clk 0:00:22.3]} 40. gxh5 {[%clk 0:00:22]}
40... gxh5 {[%clk 0:00:19.7]} 41. Kc6 {[%clk 0:00:20.9]} 41... Ke6 {[%clk
0:00:15.5]} 42. Kb7 {[%clk 0:00:20.6]} 42... Kd6 {[%clk 0:00:14]} 43. Kxa7
{[%clk 0:00:21.5]} 43... Kc7 {[%clk 0:00:09.2]} 44. Ka6 {[%clk 0:00:21.8]} 44...
Kc8 {[%clk 0:00:07.7]} 45. Kxb6 {[%clk 0:00:22.7]} 45... Kb8 {[%clk 0:00:07.6]}
46. Kc6 {[%clk 0:00:23.2]} 46... Kc8 {[%clk 0:00:07.7]} 47. b6 {[%clk
0:00:23.5]} 47... Kb8 {[%clk 0:00:07.8]} 48. b7 {[%clk 0:00:23.9]} 1-0

[Event "*** Titled Tuesday Blitz"]
[Site "Chess.com"]
[Date "2020.04.28"]
[Round "8"]
[White "AlanZhang"]
[Black "APOKALIPSA13"]
[Result "1-0"]
[WhiteElo "2174"]
[BlackElo "2232"]
[TimeControl "180+1"]
[EndTime "11:35:55 PDT"]
[Termination "AlanZhang won on time"]

1. e4 {[%clk 0:03:00]} 1... c5 {[%clk 0:02:58.5]} 2. Nf3 {[%clk 0:03:00.4]} 2...
d6 {[%clk 0:02:58]} 3. d4 {[%clk 0:03:01]} 3... cxd4 {[%clk 0:02:58.6]} 4. Nxd4
{[%clk 0:03:01.9]} 4... Nf6 {[%clk 0:02:58.6]} 5. Nc3 {[%clk 0:03:02.5]} 5... g6
{[%clk 0:02:58.5]} 6. Be3 {[%clk 0:03:01.7]} 6... Bg7 {[%clk 0:02:58.1]} 7. f3
{[%clk 0:03:02.1]} 7... O-O {[%clk 0:02:58]} 8. Qd2 {[%clk 0:03:02.7]} 8... Nc6
{[%clk 0:02:57.5]} 9. O-O-O {[%clk 0:03:03.2]} 9... Nxd4 {[%clk 0:02:56.8]} 10.
Bxd4 {[%clk 0:03:04.1]} 10... Be6 {[%clk 0:02:56.3]} 11. Kb1 {[%clk 0:03:02.9]}
11... a6 {[%clk 0:02:50.7]} 12. g4 {[%clk 0:03:02]} 12... b5 {[%clk 0:02:49.2]}
13. h4 {[%clk 0:03:00.7]} 13... b4 {[%clk 0:02:40.6]} 14. Ne2 {[%clk 0:02:54]}
14... Qa5 {[%clk 0:02:32.1]} 15. Nc1 {[%clk 0:02:52.1]} 15... Rac8 {[%clk
0:02:30.5]} 16. h5 {[%clk 0:02:39.8]} 16... Rc7 {[%clk 0:02:05.1]} 17. h6 {[%clk
0:02:33.7]} 17... Bh8 {[%clk 0:02:03.5]} 18. g5 {[%clk 0:02:32.9]} 18... Nd7
{[%clk 0:01:59.2]} 19. Bxh8 {[%clk 0:02:32.3]} 19... Kxh8 {[%clk 0:01:59.1]} 20.
f4 {[%clk 0:02:31.6]} 20... Rfc8 {[%clk 0:01:46.3]} 21. Rh2 {[%clk 0:02:01.3]}
21... f6 {[%clk 0:01:09.4]} 22. Rg2 {[%clk 0:01:28.6]} 22... Rxc2 {[%clk
0:00:31.7]} 23. Qxc2 {[%clk 0:01:19.5]} 23... Rxc2 {[%clk 0:00:31.3]} 24. Rxc2
{[%clk 0:01:20.4]} 24... Nc5 {[%clk 0:00:26.1]} 25. gxf6 {[%clk 0:01:15.1]}
25... exf6 {[%clk 0:00:20.6]} 26. Rxd6 {[%clk 0:01:13.6]} 26... Kg8 {[%clk
0:00:18.7]} 27. Rc6 {[%clk 0:01:07.1]} 27... Bxa2+ {[%clk 0:00:17.3]} 28. Nxa2
{[%clk 0:01:03.2]} 28... b3 {[%clk 0:00:17.5]} 29. Bc4+ {[%clk 0:00:40.1]} 29...
Kf8 {[%clk 0:00:15.7]} 30. Bxb3 {[%clk 0:00:24.4]} 30... Nxb3 {[%clk 0:00:12.7]}
31. Rc8+ {[%clk 0:00:23.1]} 31... Ke7 {[%clk 0:00:12.5]} 32. R2c7+ {[%clk
0:00:22]} 32... Kd6 {[%clk 0:00:10.3]} 33. Rc6+ {[%clk 0:00:16.7]} 33... Kd7
{[%clk 0:00:09.3]} 34. R8c7+ {[%clk 0:00:16.2]} 34... Qxc7 {[%clk 0:00:06.2]}
35. Rxc7+ {[%clk 0:00:15.9]} 35... Kxc7 {[%clk 0:00:07.1]} 36. Nb4 {[%clk
0:00:16.1]} 36... Nc5 {[%clk 0:00:06.6]} 37. Nd5+ {[%clk 0:00:15.7]} 37... Kd6
{[%clk 0:00:05.6]} 38. Nxf6 {[%clk 0:00:16.6]} 38... Ke6 {[%clk 0:00:05.8]} 39.
Nxh7 {[%clk 0:00:15.7]} 39... Nxe4 {[%clk 0:00:05.9]} 40. Ng5+ {[%clk
0:00:16.2]} 40... Nxg5 {[%clk 0:00:04.7]} 41. fxg5 {[%clk 0:00:17.1]} 1-0

[Event "*** Titled Tuesday Blitz"]
[Site "Chess.com"]
[Date "2020.04.28"]
[Round "8"]
[White "Gubajdullin"]
[Black "olomi007"]
[Result "0-1"]
[WhiteElo "2494"]
[BlackElo "2667"]
[TimeControl "180+1"]
[EndTime "11:35:58 PDT"]
[Termination "olomi007 won on time"]

1. d4 {[%clk 0:03:00.9]} 1... d5 {[%clk 0:03:00]} 2. Bf4 {[%clk 0:02:59.4]} 2...
Nf6 {[%clk 0:02:59.6]} 3. e3 {[%clk 0:02:58.5]} 3... e6 {[%clk 0:03:00.2]} 4.
Nd2 {[%clk 0:02:56.1]} 4... Bd6 {[%clk 0:03:00.7]} 5. Bxd6 {[%clk 0:02:55.9]}
5... Qxd6 {[%clk 0:03:00.4]} 6. f4 {[%clk 0:02:55.8]} 6... c5 {[%clk 0:02:58.5]}
7. c3 {[%clk 0:02:53.8]} 7... O-O {[%clk 0:02:58.1]} 8. Ngf3 {[%clk 0:02:53]}
8... b6 {[%clk 0:02:58.3]} 9. Ne5 {[%clk 0:02:51.8]} 9... Ne4 {[%clk 0:02:54.4]}
10. Nxe4 {[%clk 0:02:19]} 10... dxe4 {[%clk 0:02:53.9]} 11. dxc5 {[%clk
0:02:19]} 11... Qxc5 {[%clk 0:02:52.2]} 12. Qd4 {[%clk 0:02:18.7]} 12... Qc7
{[%clk 0:02:39.2]} 13. Qxe4 {[%clk 0:02:15.8]} 13... Bb7 {[%clk 0:02:39.8]} 14.
Qc4 {[%clk 0:02:14.4]} 14... Qe7 {[%clk 0:02:36.2]} 15. Bd3 {[%clk 0:02:11.9]}
15... Rc8 {[%clk 0:02:21]} 16. Qb4 {[%clk 0:01:50.7]} 16... Qxb4 {[%clk
0:02:14.9]} 17. cxb4 {[%clk 0:01:50.1]} 17... Bxg2 {[%clk 0:02:15.8]} 18. Rg1
{[%clk 0:01:49.3]} 18... Bd5 {[%clk 0:02:15.3]} 19. b5 {[%clk 0:01:38.7]} 19...
f6 {[%clk 0:02:11.5]} 20. Ng4 {[%clk 0:01:36.5]} 20... Nd7 {[%clk 0:02:08.4]}
21. b4 {[%clk 0:01:26.2]} 21... f5 {[%clk 0:02:08]} 22. Nf2 {[%clk 0:01:18.1]}
22... Nf6 {[%clk 0:02:07.7]} 23. Kd2 {[%clk 0:01:14.6]} 23... Rd8 {[%clk
0:02:04.2]} 24. Ke2 {[%clk 0:01:13.2]} 24... Rac8 {[%clk 0:02:01.1]} 25. Rgc1
{[%clk 0:01:11.6]} 25... h6 {[%clk 0:01:46]} 26. a4 {[%clk 0:01:09.9]} 26... g5
{[%clk 0:01:41.8]} 27. a5 {[%clk 0:00:58.1]} 27... g4 {[%clk 0:01:37.6]} 28.
Rxc8 {[%clk 0:00:55.6]} 28... Rxc8 {[%clk 0:01:37.3]} 29. axb6 {[%clk
0:00:55.4]} 29... axb6 {[%clk 0:01:37.1]} 30. Ra6 {[%clk 0:00:53.6]} 30... Bf3+
{[%clk 0:01:36.4]} 31. Kd2 {[%clk 0:00:52.7]} 31... Nd5 {[%clk 0:01:35.4]} 32.
e4 {[%clk 0:00:40.4]} 32... Nxf4 {[%clk 0:01:22.8]} 33. Rxb6 {[%clk 0:00:37.8]}
33... Nxd3 {[%clk 0:01:20.4]} 34. Kxd3 {[%clk 0:00:37.7]} 34... f4 {[%clk
0:00:52.9]} 35. Rxe6 {[%clk 0:00:36.7]} 35... Rd8+ {[%clk 0:00:53.2]} 36. Kc3
{[%clk 0:00:35.5]} 36... Kg7 {[%clk 0:00:35.4]} 37. b6 {[%clk 0:00:27.7]} 37...
g3 {[%clk 0:00:33]} 38. hxg3 {[%clk 0:00:17.8]} 38... fxg3 {[%clk 0:00:33.9]}
39. Nh3 {[%clk 0:00:14.3]} 39... Bg4 {[%clk 0:00:34]} 40. Re7+ {[%clk
0:00:14.1]} 40... Kf6 {[%clk 0:00:33.8]} 41. Rh7 {[%clk 0:00:13.6]} 41... Kg6
{[%clk 0:00:29.6]} 42. Rc7 {[%clk 0:00:06.3]} 42... Bxh3 {[%clk 0:00:28.8]} 43.
b7 {[%clk 0:00:03.5]} 43... g2 {[%clk 0:00:28.7]} 44. Rc6+ {[%clk 0:00:03.5]}
44... Kg5 {[%clk 0:00:28.7]} 45. Rc7 {[%clk 0:00:03.4]} 45... Kf6 {[%clk
0:00:20.6]} 46. Rc6+ {[%clk 0:00:02.9]} 46... Be6 {[%clk 0:00:18.9]} 0-1